[Event "E Women's Grand Prix | Fourth Leg 2022/23"]
[Site "Chess.com"]
[Date "2023.05.15"]
[Round "1"]
[White "Wagner, Dinara"]
[Black "Goryachkina, Aleksandra"]
[Result "1-0"]
[WhiteElo "2417"]
[BlackElo "2571"]
[ECO "E04"]
[EventDate "2023.??.??"]
[Annotator "rafael"]
[PlyCount "161"]
[Beauty "5295178781219"]
[EventType "swiss"]
[EventRounds "11"]
[EventCountry "FID"]
[TimeControl "5400+30"]

1.d4 Nf6 2.c4 e6 3.Nf3 d5 4.g3 dxc4 5.Bg2 a6 {This is one of the most aggressive options against the ultra-solid Catalan Opening. Black intends to protect the c4-pawn with b7-b5.} 6.O-O Nc6 7.Nc3 Rb8 8.e4 Be7 9.d5 {It's clear that both players are well prepared with the latest developments of this opening line since all these moves were played very quickly.} ( 9.Qe2 {is also popular.} ) 9...exd5 10.exd5 Nb4 11.Ne5 Bf5 ( 11...O-O {is also possible, although White regains the pawn and gets a more comfortable position due to his space advantage after} 12.a3 Nd3 13.Nxd3 cxd3 14.Qxd3 ) 12.Nxc4 $1 {[%c_effect c4;square;c4;type;GreatFind;persistent;true] The most accurate move order.} ( 12.a3 {This is also popular, but it gives Black an extra option.} 12...Nd3 13.Nxc4 Nxc1 ( 13...O-O {transposes to the game.} ) 14.Rxc1 O-O {With a balanced position. There are many games played in this position.} ) 12...O-O $1 {[%c_effect g8;square;g8;type;GreatFind;persistent;true] Black must resist the temptation to gain material.} ( 12...Bd3 $6 {[%c_effect d3;square;d3;type;Inaccuracy;persistent;true]} 13.b3 Bxf1 14.Kxf1 {The knight on b4 is misplaced and White gets excellent compensation for the exchange after} 14...a5 15.a3 Na6 16.Nxa5 ) 13.a3 Nd3 14.Be3 Qd7 15.b4 Rfe8 {This is a popular position in correspondence chess.} 16.h3 $5 {[%c_effect h3;square;h3;type;Interesting;persistent;true]} ( 16.Ra2 {is the most popular move, with the idea of bringing the rook to the game.} ) 16...b5 {The first new move, and it's safe to say that both players are out of book by now. The move works, but it demands accurate play, and it's not the best practical choice.} ( 16...c5 $5 {[%c_effect c5;square;c5;type;Interesting;persistent;true] Is a strange move that was played in a correspondence game. After} 17.g4 ( 17.dxc6 bxc6 {with an unclear position.} ) 17...Bg6 18.f4 b5 19.Ne5 Nxe5 20.fxe5 cxb4 21.axb4 Bxb4 {a chaotic position arises where Black's chances are not worse. Sukhachev-Kolpak, ICC email 2010.} ) ( 16...h5 {is natural, avoiding g4.} 17.Ra2 Bd6 18.Bd4 Ne5 19.Nxd6 cxd6 20.Kh2 {with a balanced position in Pranav-Prraneeth, Budapest 2022.} ) 17.Na5 Bd6 $6 {[%c_effect d6;square;d6;type;Inaccuracy;persistent;true]} ( 17...Nb2 $1 {[%c_effect b2;square;b2;type;GreatFind;persistent;true] is the only way to justify Black's previous move.} 18.Qe2 Nc4 {Now White has two options, but Black has good counterplay in both cases.} 19.Nxc4 ( 19.Nc6 Rbc8 20.g4 Bg6 21.g5 Nh5 22.Qg4 f5 23.gxf6 Nxf6 24.Qxd7 Nxd7 {with an equal position.} ) 19...bxc4 20.Qxc4 Bxh3 {with chances for both sides.} ) 18.Bd4 Nb2 19.Qb3 Na4 20.Nc6 {Now White has a clear advantage. The knight on c6 is a monster.} 20...Ra8 21.Nxa4 ( 21.Bxf6 $1 {[%c_effect f6;square;f6;type;GreatFind;persistent;true] is better. White has a clear positional advantage after} 21...gxf6 22.Kh2 ) 21...bxa4 22.Qb2 ( 22.Qxa4 Bxh3 23.Bxf6 gxf6 {Black has good counterplay.} ) 22...Bf8 $2 {[%c_effect f8;square;f8;type;Mistake;persistent;true]} ( 22...Bxh3 $1 {[%c_effect h3;square;h3;type;GreatFind;persistent;true] This move works due to a fantastic tactical resource.} 23.Bxf6 ( 23.Bxh3 Qxh3 24.Bxf6 gxf6 25.Qxf6 Re4 {The position remains difficult to evaluate, but the computer thinks Black is ok.} ) 23...Bxg2 24.Kxg2 Qf5 $3 {[%c_effect f5;square;f5;type;Brilliant;persistent;true] This is the point $1 A move that is easy to miss. Black attacks the bishop and the d5-pawn.} ( 24...gxf6 25.Qxf6 ) 25.Bxg7 ( 25.Rad1 gxf6 {with equal play.} ) 25...Qxd5+ 26.Kg1 Qxc6 27.Bh8 Bf8 {Everything is defended, and Black has good chances of equalizing.} ) 23.Bxf6 gxf6 24.Kh2 ( 24.Qxf6 $5 {[%c_effect f6;square;f6;type;Interesting;persistent;true] is an interesting positional exchange sacrifice.} 24...Bg7 25.Qh4 Bxa1 26.Rxa1 {With excellent compensation due to the dark squares and the many weaknesses in Black's position.} ) 24...Bg7 25.Rad1 Bg6 26.Qa2 {It's not clear to me whether this is the best square for the queen, but it probably doesn't make much of a difference.} ( 26.Qd2 ) 26...Qd6 27.Rfe1 Bh5 28.Rb1 Bg6 29.Rbd1 Bh5 30.Rc1 Bh6 31.f4 $2 {[%c_effect f4;square;f4;type;Mistake;persistent;true] This is a tactical mistake.} ( 31.Ra1 $1 {[%c_effect a1;square;a1;type;GreatFind;persistent;true] is the best, hiding the rook from further persecution and maintaining all the trumps of the position.} ) 31...Bg6 $2 {[%c_effect g6;square;g6;type;Mistake;persistent;true]} ( 31...Bxf4 $3 {[%c_effect f4;square;f4;type;Brilliant;persistent;true] is a brilliant tactical stroke.} 32.gxf4 Qxf4+ 33.Kh1 Re2 $3 {[%c_effect e2;square;e2;type;Brilliant;persistent;true] This is the idea. White must be careful not to end up worse.} 34.Rxe2 ( 34.Qxe2 {The computer suggests the queen sacrifice, with an unclear position after} 34...Bxe2 35.d6 ) 34...Qxc1+ 35.Kh2 Qf4+ 36.Kg1 {Black can decide whether to accept a draw with perpetual check or to play for a win after 36...Bxe2.} ) 32.Qc4 {White is much better again.} 32...Bf8 33.Bf3 Bf5 34.Nd4 Rxe1 35.Rxe1 Bd7 36.Nc6 Kg7 37.h4 Kg8 38.Kg2 Kg7 39.Qc2 {The a4-pawn is doomed.} 39...Re8 40.Rxe8 Bxe8 41.Qxa4 Bxc6 {An important moment.} 42.dxc6 $2 {[%c_effect c6;square;c6;type;Mistake;persistent;true]} ( 42.Qxc6 $1 {[%c_effect c6;square;c6;type;GreatFind;persistent;true] is the right move. Opposite-colored bishop endgames are difficult to evaluate sometimes: is White able to win, or can Black set up a fortress $2 It seems to me that the position is winning, and the main line is very instructive.} 42...Qxc6 43.dxc6 f5 44.Be2 a5 45.bxa5 Kf6 ( 45...Bxa3 46.Bd3 $1 {[%c_effect d3;square;d3;type;GreatFind;persistent;true] White is in time to create another passed pawn after} 46...Kf6 47.a6 Bc5 48.g4 $1 {[%c_effect g4;square;g4;type;GreatFind;persistent;true]} 48...fxg4 49.Bxh7 {with an easy win.} ) 46.Ba6 $1 {[%c_effect a6;square;a6;type;GreatFind;persistent;true]} 46...Bxa3 47.Bc8 Bc5 {At first sight, it looks like Black has a fortress, but this is an illusion.} 48.Kf3 Ba7 49.Ke2 Bc5 50.Kd3 Bf2 51.a6 Ba7 52.Kc4 Bb6 53.Kd5 Ba7 54.Bd7 Bb6 55.Be8 $1 {[%c_effect e8;square;e8;type;GreatFind;persistent;true]} 55...Ba7 56.Bxf7 $1 {[%c_effect f7;square;f7;type;GreatFind;persistent;true] The winning plan.} 56...Kxf7 57.Ke5 {and White breaks through.} ) 42...Qd2+ 43.Kh3 Qd3 44.Bg2 ( 44.Qd1 $1 {[%c_effect d1;square;d1;type;GreatFind;persistent;true] is a better attempt.} ) 44...Bd6 45.Kh2 f5 46.Qa5 Kf6 47.a4 h6 ( 47...Qc4 {leads to a draw after some computer precision:} 48.b5 Bxf4 $1 {[%c_effect f4;square;f4;type;GreatFind;persistent;true]} 49.gxf4 ( 49.bxa6 Bd6 {with counterplay, since 50...Qxh4 is threatened.} ) 49...Qxf4+ 50.Kg1 Qd4+ 51.Kf1 Qc4+ {and apparently Black escapes with a draw.} ) 48.b5 axb5 49.axb5 Bc5 50.Qe1 Kg6 51.Qe8 Bf2 ( 51...Qd1 {is enough for a draw.} ) 52.Qg8+ Kf6 53.Qh8+ Ke7 ( 53...Kg6 $2 {[%c_effect g6;square;g6;type;Mistake;persistent;true]} 54.h5+ $1 {[%c_effect h5;square;h5;type;GreatFind;persistent;true]} 54...Kxh5 55.Qg7 {wins.} ) 54.Qe5+ Kf8 55.Qh8+ Ke7 56.Qg7 h5 ( 56...Qd6 $1 {[%c_effect d6;square;d6;type;GreatFind;persistent;true] is safer.} ) 57.Qe5+ Kf8 58.Qh8+ Ke7 59.Qg7 Ke8 ( 59...Qxb5 60.Qg5+ Ke6 61.Qxh5 {This looks totally lost for Black, but the computer always finds some way to defend.} 61...Qd3 62.Qh6+ Ke7 63.Qg5+ Ke6 64.h5 Qe2 $1 {[%c_effect e2;square;e2;type;GreatFind;persistent;true] The only defense $1} 65.h6 Qg4 $1 {[%c_effect g4;square;g4;type;GreatFind;persistent;true] After the queen exchange, the bishop comes to d4, and Black is saved.} ) 60.Qe5+ Kf8 61.Qh8+ Ke7 62.Qg7 Ke8 63.Qg5 Kf8 64.b6 $1 {[%c_effect b6;square;b6;type;GreatFind;persistent;true] A nice winning try.} 64...Bxb6 $6 {[%c_effect b6;square;b6;type;Inaccuracy;persistent;true]} ( 64...Qd1 $1 {[%c_effect d1;square;d1;type;GreatFind;persistent;true] is the most accurate.} 65.Qxf5 ( 65.bxc7 Bg1+ 66.Kh1 {with a draw.} ( 66.Kh3 $4 {[%c_effect h3;square;h3;type;Blunder;persistent;true]} 66...Qg4+ 67.Qxg4 fxg4# {is embarassing.} ) ) 65...Bxb6 {Black's defensive task is easier because White has no passed pawn.} ) 65.Qxh5 Kg7 $2 {[%c_effect g7;square;g7;type;Mistake;persistent;true] The final mistake.} ( 65...Bf2 $1 {[%c_effect f2;square;f2;type;GreatFind;persistent;true] It's still possible to save the game with precise maneuvering.} 66.Qg5 Bc5 $1 {[%c_effect c5;square;c5;type;GreatFind;persistent;true] The only move. The idea is clear after} 67.h5 {Not the best attempt.} 67...Be7 $1 {[%c_effect e7;square;e7;type;GreatFind;persistent;true]} 68.Qh6+ Kg8 {White's queen has nowhere to go, but Black also has no plan. A curious positional draw.} ) 66.Qg5+ Kh7 67.Qh5+ Kg7 68.Qg5+ Kh7 69.Qf6 Kg8 70.h5 {The h-pawn marches, and the game is over.} 70...Bc5 71.h6 Bd4 72.Qd8+ Kh7 73.Qxc7 Kxh6 74.Qxf7 Bg1+ $5 {[%c_effect g1;square;g1;type;Interesting;persistent;true]} 75.Kh3 ( 75.Kxg1 $4 {[%c_effect g1;square;g1;type;Blunder;persistent;true] It's never too late to make a mistake.} 75...Qf1+ 76.Kxf1 {Stalemate.} ) 75...Bf2 76.Qg8 Qc2 77.Qg5+ Kh7 78.Qe7+ Kh6 79.c7 Qc3 80.Qg5+ Kh7 81.Qxf5+ 1-0

[Event "E Women's Grand Prix | Fourth Leg 2022/23"]
[Site "Chess.com"]
[Date "2023.05.18"]
[Round "3"]
[White "Shuvalova, Polina"]
[Black "Mammadzada, Gunay"]
[Result "1-0"]
[WhiteElo "2484"]
[BlackElo "2449"]
[ECO "B42"]
[EventDate "2023.??.??"]
[Annotator "Rafael Leitao"]
[PlyCount "155"]
[Beauty "5429375533574"]
[EventType "swiss"]
[EventRounds "11"]
[EventCountry "FID"]
[TimeControl "5400+30"]

{[%evp 0,154,25,16,58,58,56,49,26,35,56,49,42,33,37,15,63,58,45,35,42,26,54,54,58,46,58,39,41,39,37,25,30,21,42,18,24,25,3,7,16,2,36,39,66,64,81,74,78,88,87,102,126,109,107,101,101,93,93,94,96,90,92,109,100,100,117,105,105,102,100,100,99,97,120,81,92,92,91,91,90,91,91,81,96,96,94,94,94,94,94,94,94,94,94,101,147,152,196,158,150,161,208,157,147,147,148,143,142,143,143,143,143,150,142,137,137,145,142,162,168,147,153,138,143,139,139,146,149,135,146,166,156,177,175,180,184,226,225,227,227,209,238,231,251,253,267,229,232,228,232,527,537,547,1012,1012,1022]} 
1.e4 c5 2.Nf3 e6 3.d4 cxd4 4.Nxd4 a6 {The Paulsen Variation of the Sicilian is not a frequent guest in strong tournaments anymore. It's not that there's something particularly bad with it. It's just that other options are simply better.} 5.Bd3 Nf6 6.O-O Qc7 7.c4 d6 8.Nc3 Nbd7 {Black's opening choice is playable but passive. There's no doubt White has the advantage in this so-called \"hedgehog\" setup.} 9.a4 {A rare move.} ( 9.Be3 ) ( 9.f4 ) 9...Ne5 ( 9...b6 10.a5 {In the hedgehog, the best strategy is to play with patience. I don't like this plan.} 10...bxa5 11.Nb3 a4 12.Rxa4 Rb8 {with chances for both sides in Garriga Cazorla-Bellon Lopez, Stockholm 2022.} ) 10.b3 Nxd3 11.Qxd3 Be7 12.Rd1 {A positional plan. White can also play for an attack advancing the pawn to f4 and later to f5. For this plan, the rook is useful on its initial square.} ( 12.f4 O-O 13.Bd2 ) 12...O-O 13.Nde2 b6 14.Ba3 Rd8 15.Qg3 Bb7 16.f3 Rac8 17.Rd2 {The problem with Black's position is that there's no active plan available. The pawn breakthroughs on d5 and b5 are well protected.} 17...Nh5 {A nice move. Mammadzada's play is very creative.} ( 17...Nd7 $2 {[%c_effect d7;square;d7;type;Mistake;persistent;true] It would be very good to bring the knight to c5, but it loses a pawn on the way.} 18.Bxd6 ) ( 17...Ne8 18.Rad1 {With a normal position. White is better, but it's not easy to break the resistance.} ) 18.Qf2 Bg5 $1 {[%c_effect g5;square;g5;type;GreatFind;persistent;true] Inviting White to play f4, when the b7-bishop will have more life.} 19.Rd3 ( 19.f4 Be7 ) 19...Nf4 $1 {[%c_effect f4;square;f4;type;GreatFind;persistent;true]} 20.Nxf4 Bxf4 21.Ne2 ( 21.Rad1 Be5 22.Ne2 d5 $1 {[%c_effect d5;square;d5;type;GreatFind;persistent;true] The game becomes sharp since the h2-pawn is attacked.} ) 21...Bg5 $2 {[%c_effect g5;square;g5;type;Mistake;persistent;true] The wrong square. After} ( 21...Be5 $1 {[%c_effect e5;square;e5;type;GreatFind;persistent;true] Black has an acceptable position. Without the knight on c3, it's easier to achieve the breaks on d5 or b5.} 22.Rc1 ( 22.Rad1 b5 $1 {[%c_effect b5;square;b5;type;GreatFind;persistent;true]} 23.cxb5 axb5 24.axb5 Qa5 {with counterplay.} ) 22...h6 ) 22.Rad1 Be7 23.Qg3 {Now, Mammadzada is forced to make a huge positional concession to protect the d6-pawn.} 23...e5 {Fatally weakening the d5-square.} 24.Nc3 {White has a strategically winning position.} 24...Bf8 25.Qf2 Bc6 26.Nd5 Bxd5 27.Rxd5 Rd7 28.Qd2 Rcd8 29.Bb2 ( 29.f4 $1 {[%c_effect f4;square;f4;type;GreatFind;persistent;true] is the most accurate way to play. Black loses a pawn.} 29...f6 ( 29...exf4 30.e5 {is decisive.} ) 30.fxe5 ( 30.f5 {is also winning, followed by the advance of the kingside pawns.} ) 30...fxe5 31.Bb2 {The e5-pawn will be captured due to the pin.} ) 29...f6 30.h4 Re8 31.Ba3 Re6 32.Qf2 Qc6 33.Kh2 Rf7 34.Qd2 Rd7 35.Qd3 h5 36.a5 $6 {[%c_effect a5;square;a5;type;Inaccuracy;persistent;true] There's no reason to rush. White can improve the position further. A possible plan is to place the queen behind the rooks.} ( 36.Qe3 ) 36...Rb7 37.Bxd6 $2 {[%c_effect d6;square;d6;type;Mistake;persistent;true] And this is just bad. It wins a pawn but offers the opponent excellent drawing chances in the rook endgame.} ( 37.b4 bxa5 38.Rxa5 {keeps a clear positional advantage.} ) 37...Bxd6 38.Rxd6 Rxd6 39.Qxd6 Qxd6 40.Rxd6 bxa5 41.Rxa6 Rxb3 42.Rxa5 Rc3 43.Rc5 Kh7 {This endgame should be a draw, but we all know how rook endings are difficult to play.} 44.Kg3 Kh6 45.Rc8 Rc2 46.c5 Kh7 47.c6 g6 ( 47...Kg6 {is also good.} ) 48.c7 {This is always a difficult move to play, as now the king loses its hiding spot from the checks if it marches to the queenside.} 48...Kg7 49.Kh2 Rc1 50.g3 Kh7 51.Kg2 g5 $2 {[%c_effect g5;square;g5;type;Mistake;persistent;true] There's always a mistake waiting to be made in rook endgames.} ( 51...Kg7 {is the right move, and there's no winning plan for White. The best she can achieve is a theoretically drawn endgame after} 52.f4 Rc2+ 53.Kf3 Rc5 54.fxe5 fxe5 55.Re8 Rxc7 56.Rxe5 ) 52.Rf8 Rxc7 53.Rxf6 gxh4 54.gxh4 {The endgame is winning now. The e5-pawn will fall, leaving White with two strong passed pawns.} 54...Rc5 55.Rf5 Kg6 56.Kf2 Ra5 57.Ke3 Ra3+ ( 57...Rc5 58.Kd3 Kh6 59.f4 {wins.} ) 58.Ke2 Ra5 59.Kd3 Kh6 60.Kc3 Ra1 61.Kd3 Rh1 ( 61...Ra5 {is not enough:} 62.Kc4 Kg6 63.Kb4 Ra1 64.Kc5 Rh1 65.Kd5 Rxh4 66.Kxe5 {with a similar position to what we get in the game.} ) 62.Rxe5 Rxh4 63.Ke3 Kg6 64.Ra5 Kf6 65.Kf2 Kg6 66.Kg2 Kh6 67.Ra6+ Kg7 68.Ra1 Rf4 69.Kg3 Rf7 70.f4 Re7 71.Kf3 Rb7 72.f5 Rb2 73.Kf4 Rg2 74.Kf3 Rg5 75.Ra2 $1 {[%c_effect a2;square;a2;type;GreatFind;persistent;true] An elegant move. There's no defense against 76.Rg2, exchanging rooks.} 75...Kf6 76.Rg2 h4 77.Rxg5 Kxg5 78.Kg2 1-0